fUST/lending_fUST_20240829
["ID","MTS","AMOUNT","RATE_DAILY","PERIOD"]
[336481702,1724871049791,-593.21,0.00019617,2]
[336481703,1724871049801,-875.122939,0.00019617,2]
[336481704,1724871049811,-875.122939,0.00019617,2]
[336481705,1724871049820,-511.47457523,0.00019617,2]
[336481706,1724871049830,-164.07782288,0.00019617,2]
[336481707,1724871049840,-566.36,0.00019617,2]
[336481708,1724871049851,-500.0,0.00019618,2]
[336481709,1724871049861,-413.16195661,0.00019619,5]
[336481710,1724871049870,-500.0,0.00019619,2]
[336481711,1724871049881,-500.0,0.00019619,2]
[336481712,1724871049890,-500.0,0.00019619,2]
[336481713,1724871049901,-500.0,0.00019619,2]
[336481714,1724871049911,-500.0,0.00019619,2]
[336481715,1724871049920,-500.0,0.00019619,2]
[336481716,1724871049930,-500.0,0.00019619,2]
[336481717,1724871049940,-609.14,0.00019619,2]
[336481718,1724871049951,-500.0,0.00019619,2]
[336481719,1724871049960,-503.23,0.00019619,2]
[336481720,1724871049970,-500.0,0.00019619,2]
[336481721,1724871049979,-500.0,0.00019619,2]
[336481722,1724871049989,-500.0,0.00019619,2]
[336481723,1724871050000,-333.61633717,0.00019619,2]
[336481724,1724871050010,-500.0,0.00019619,2]
[336481725,1724871050019,-500.0,0.00019619,2]
[336481726,1724871050029,-156.26293579,0.00019619,2]
[336481727,1724871050038,-202.200748,0.00019619,2]
[336481728,1724871050048,-151.0,0.00019619,2]
[336481729,1724871050058,-151.0,0.00019619,2]
[336481730,1724871050068,-151.0,0.00019619,2]
[336481731,1724871050078,-347.582502,0.00019619,2]
[336481732,1724871050088,-347.582502,0.00019619,2]
[336481733,1724871050098,-719.36,0.00019619,2]
[336481734,1724871050110,-198.84,0.00019619,2]
[336481735,1724871050121,-500.0,0.00019619,2]
[336481736,1724871050130,-500.0,0.00019619,2]
[336481737,1724871050140,-507.34,0.00019619,2]
[336481738,1724871050151,-500.0,0.00019619,2]
[336481739,1724871050161,-500.0,0.00019619,2]
[336481740,1724871050171,-500.0,0.00019619,2]
[336481741,1724871050180,-339.102673,0.00019619,2]
[336481742,1724871050190,-339.102673,0.00019619,2]
[336481743,1724871050200,-500.0,0.00019619,2]
[336481744,1724871050210,-611.82,0.00019619,2]
[336481745,1724871050220,-274.28,0.00019619,2]
[336481746,1724871050231,-467.548976,0.00019619,2]
[336481747,1724871050241,-467.548976,0.00019619,2]
[336481748,1724871050251,-500.0,0.00019619,2]
[336481749,1724871050261,-500.0,0.00019619,2]
[336481750,1724871050270,-500.0,0.00019619,2]
[336481751,1724871050284,-500.0,0.00019619,2]
[336481752,1724871050294,-413.235991,0.00019619,2]
[336481753,1724871050304,-413.235991,0.00019619,2]
[336481754,1724871050446,-500.0,0.00019619,2]
[336481755,1724871050456,-167.85,0.0001962,2]
[336481756,1724871050467,-151.0,0.0001962,2]
[336481757,1724871050477,-522.2,0.0001962,2]
[336481758,1724871050486,-374.877639,0.0001962,2]
[336481759,1724871050496,-374.877639,0.0001962,2]
[336481760,1724871050507,-717.569043,0.0001962,2]
[336481761,1724871050519,-500.0,0.0001962,2]
[336481762,1724871050529,-500.0,0.0001962,2]
[336481763,1724871050539,-500.0,0.0001962,2]
[336481764,1724871050548,-283.98128811,0.0001962,2]
[336481766,1724871224691,-239.66970193,0.00027,120]
[336481767,1724871224713,-187.04029807,0.00027,120]
[336481768,1724871235314,-0.00162679,0.00027,120]
[336481769,1724871235462,-175.0,0.00028493,120]
[336481770,1724871245185,-142.866602,0.00028493,120]
[336481774,1724871449244,283.843398,0.00028493,120]
[336481775,1724871449266,18.129873,0.00028493,120]
[336481780,1724871821214,-412.75543376,0.00025,60]
[336481788,1724872026143,-686.400808,0.00014247,2]
[336481789,1724872026169,-904.65337,0.00017998,2]
[336481790,1724872026192,-194.540244,0.00018027,2]
[336481791,1724872026216,-500.0,0.00018798,2]
[336481792,1724872026237,-465.00038822,0.00018858,2]
[336481793,1724872026259,-354.530176,0.00018904,2]
[336481794,1724872026281,-28.16305867,0.00019178,2]
[336481795,1724872034292,-134.16835733,0.00019178,2]
[336481796,1724872034315,-162.331416,0.00019178,2]
[336481797,1724872034338,-165.90923052,0.00019325,2]
[336481798,1724872043108,-213.54785495,0.00018628,2]
[336481801,1724872140492,286.874607,0.00028493,120]
[336481802,1724872163126,-750.0,0.00014247,2]
[336481832,1724872232416,-1896.2376044,0.00018232,2]
[336481833,1724872232426,-286.45214505,0.00018628,2]
[336481834,1724872232435,-154.74467129,0.00019043,2]
[336481835,1724872232446,-2000.0,0.00019235,2]
[336481836,1724872232455,-11371.3482905,0.00019324,2]
[336481837,1724872232467,-11371.3482905,0.00019326,2]
[336481838,1724872232476,-500.0,0.00019333,2]
[336481839,1724872232486,-1147.62,0.00019333,2]
[336481840,1724872232495,-779.89,0.00019333,2]
[336481841,1724872232505,-500.0,0.00019333,2]
[336481842,1724872232514,-500.0,0.00019333,2]
[336481843,1724872232523,-1610.53,0.00019333,2]
[336481844,1724872232533,-500.0,0.00019333,2]
[336481845,1724872232543,-500.0,0.00019333,2]
[336481846,1724872232552,-500.0,0.00019333,2]
[336481847,1724872232562,-500.0,0.00019333,2]
[336481848,1724872232572,-500.0,0.00019333,2]
[336481849,1724872232582,-614.45,0.00019333,2]
[336481850,1724872232591,-1120.89,0.00019333,2]
[336481851,1724872232601,-976.99,0.00019333,2]
[336481852,1724872232611,-500.0,0.00019333,2]
[336481853,1724872232620,-500.0,0.00019333,2]
[336481854,1724872232630,-500.0,0.00019333,2]
[336481855,1724872232639,-500.0,0.00019333,2]
[336481856,1724872232656,-861.67,0.00019333,2]
[336481857,1724872232668,-500.0,0.00019333,2]
[336481858,1724872232678,-4575.29,0.00019333,2]
[336481859,1724872232688,-500.0,0.00019333,2]
[336481860,1724872232701,-500.0,0.00019333,2]
[336481861,1724872232712,-683.25,0.00019333,2]
[336481862,1724872232723,-3803.49,0.00019333,2]
[336481863,1724872232735,-500.0,0.00019333,2]
[336481864,1724872232745,-500.0,0.00019334,2]
[336481865,1724872232755,-500.0,0.00019334,2]
[336481866,1724872232765,-500.0,0.00019334,2]
[336481867,1724872232778,-742.75,0.00019334,2]
[336481868,1724872232789,-500.0,0.00019334,2]
[336481869,1724872232799,-500.0,0.00019334,2]
[336481870,1724872232809,-500.0,0.00019334,2]
[336481871,1724872232818,-500.0,0.00019334,2]
[336481872,1724872232828,-629.76725499,0.00019334,2]
[336481873,1724872232838,-500.0,0.00019334,2]
[336481874,1724872232847,-627.21192005,0.00019334,2]
[336481875,1724872232857,-649.241437,0.00019334,2]
[336481876,1724872232867,-174.04647532,0.00019334,2]
[336481877,1724872232877,-500.0,0.00019334,2]
[336481878,1724872232887,-500.0,0.00019334,2]
[336481879,1724872232897,-500.0,0.00019334,2]
[336481880,1724872232908,-500.0,0.00019334,2]
[336481881,1724872232919,-500.0,0.00019334,2]
[336481882,1724872232928,-500.0,0.00019334,2]
[336481883,1724872232938,-500.0,0.00019334,2]
[336481884,1724872232948,-500.0,0.00019334,2]
[336481885,1724872232958,-500.0,0.00019334,2]
[336481886,1724872232971,-500.0,0.00019334,2]
[336481887,1724872232983,-500.0,0.00019334,2]
[336481888,1724872232994,-500.0,0.00019334,2]
[336481889,1724872233003,-500.0,0.00019334,2]
[336481890,1724872233013,-500.0,0.00019334,2]
[336481891,1724872233024,-355.27794363,0.00019334,2]
[336481892,1724872233034,-500.0,0.00019334,2]
[336481893,1724872233044,-500.0,0.00019334,2]
[336481894,1724872233054,-500.0,0.00019334,2]
[336481895,1724872233064,-155.64186044,0.00019334,2]
[336481896,1724872233074,-500.0,0.00019334,2]
[336481897,1724872233084,-322.43096899,0.00019334,2]
[336481898,1724872233094,-500.0,0.00019334,2]
[336481899,1724872233104,-523.24871223,0.00019334,2]
[336481900,1724872233113,-500.0,0.00019334,2]
[336481901,1724872233123,-500.0,0.00019334,2]
[336481902,1724872233135,-500.0,0.00019334,2]
[336481903,1724872233144,-500.0,0.00019334,2]
[336481904,1724872233155,-500.0,0.00019334,2]
[336481905,1724872233166,-500.0,0.00019334,2]
[336481906,1724872233176,-500.0,0.00019334,2]
[336481907,1724872233186,-500.0,0.00019334,2]
[336481908,1724872233197,-500.0,0.00019334,2]
[336481909,1724872233207,-500.0,0.00019334,2]
[336481910,1724872233221,-500.0,0.00019334,2]
[336481911,1724872233231,-500.0,0.00019334,2]
[336481912,1724872233242,-500.0,0.00019334,2]
[336481913,1724872233251,-500.0,0.00019334,2]
[336481914,1724872233262,-500.0,0.00019334,2]
[336481915,1724872233273,-500.0,0.00019334,2]
[336481916,1724872233284,-500.0,0.00019334,2]
[336481917,1724872233294,-500.0,0.00019334,2]
[336481918,1724872233308,-500.0,0.00019334,2]
[336481919,1724872233319,-500.0,0.00019334,2]
[336481920,1724872233329,-500.0,0.00019334,2]
[336481921,1724872233339,-500.0,0.00019334,2]
[336481922,1724872233349,-500.0,0.00019334,2]
[336481923,1724872233359,-500.0,0.00019334,2]
[336481924,1724872233371,-500.0,0.00019334,2]
[336481925,1724872233381,-500.0,0.00019334,2]
[336481926,1724872233391,-500.0,0.00019334,2]
[336481927,1724872233401,-500.0,0.00019334,2]
[336481928,1724872233411,-500.0,0.00019334,2]
[336481929,1724872233421,-500.0,0.00019334,2]
[336481930,1724872233432,-500.0,0.00019334,2]
[336481931,1724872233441,-500.0,0.00019334,2]
[336481932,1724872233451,-500.0,0.00019334,2]
[336481933,1724872233462,-500.0,0.00019334,2]
[336481934,1724872233475,-500.0,0.00019334,2]
[336481935,1724872233492,-500.0,0.00019334,2]
[336481936,1724872233502,-500.0,0.00019334,2]
[336481937,1724872233511,-500.0,0.00019334,2]
[336481938,1724872233521,-316.31604139,0.00019334,2]
[336481939,1724872233532,-500.0,0.00019334,2]
[336481940,1724872233542,-500.0,0.00019334,2]
[336481941,1724872233552,-345.34161757,0.00019334,2]
[336481942,1724872233568,-154.65838243,0.00019334,2]
[336481943,1724872233579,-500.0,0.00019334,2]
[336481944,1724872233590,-500.0,0.00019334,2]
[336481945,1724872233600,-500.0,0.00019334,2]
[336481946,1724872233610,-500.0,0.00019334,2]
[336481947,1724872233620,-389.10161757,0.00019334,2]
[336481955,1724872238682,-864.43746259,0.00019334,2]
[336481956,1724872238696,-268.29253741,0.00019334,2]
[336481957,1724872238708,-697.45,0.00019334,2]
[336481958,1724872238718,-500.0,0.00019334,2]
[336481959,1724872238732,-500.0,0.00019334,2]
[336481960,1724872238743,-562.25746259,0.00019334,2]
[336481986,1724872246417,-486.52253741,0.00019334,2]
[336481987,1724872246428,-500.0,0.00019334,2]
[336481988,1724872246437,-92.80744235,0.00019334,2]
[336482034,1724872673230,121.70552,0.00028493,120]
[336482035,1724872673252,150.825356,0.00028493,120]
[336482040,1724872816220,-153.66,0.000266,31]
[336482041,1724872816271,-153.66,0.000266,31]
[336482042,1724872816318,-153.66,0.000266,31]
[336482043,1724872816366,-153.66,0.000266,31]
[336482044,1724872816413,-153.66,0.000266,31]
[336482045,1724872816459,-153.66,0.000266,31]
[336482046,1724872816508,-153.66,0.000266,31]
[336482047,1724872816549,-258.09783738,0.0002661,30]
[336482048,1724872816592,-400.0,0.00027397,60]
[336482049,1724872816643,-153.66,0.000281,31]
[336482050,1724872816687,-153.66,0.000281,31]
[336482051,1724872816731,-153.66,0.000281,31]
[336482052,1724872816777,-153.66,0.000281,31]
[336482053,1724872816821,-153.66,0.000281,31]
[336482054,1724872816867,-153.66,0.000281,31]
[336482055,1724872816914,-153.66,0.000281,31]
[336482056,1724872816962,-153.66,0.000281,31]
[336482057,1724872817007,-153.66,0.000281,31]
[336482058,1724872817053,-153.66,0.000281,31]
[336482059,1724872817099,-153.66,0.000281,31]
[336482060,1724872817144,-153.66,0.000281,31]
[336482061,1724872817191,-153.66,0.000281,31]
[336482062,1724872817236,-153.66,0.000281,31]
[336482063,1724872817278,-272.530876,0.00028493,33]
[336482064,1724872817321,-272.530876,0.00028493,39]
[336482065,1724872817362,-272.530876,0.00028493,45]
[336482066,1724872817404,-272.530876,0.00028493,51]
[336482067,1724872817443,-272.530876,0.00028493,57]
[336482068,1724872817485,-272.530876,0.00028493,64]
[336482069,1724872817527,-272.530876,0.00028493,70]
[336482070,1724872817571,-272.530876,0.00028493,76]
[336482071,1724872817614,-272.530876,0.00028493,82]
[336482072,1724872817656,-272.530876,0.00028493,88]
[336482073,1724872817699,-272.530876,0.00028493,95]
[336482074,1724872817740,-272.530876,0.00028493,101]
[336482075,1724872817781,-272.530876,0.00028493,107]
[336482076,1724872817824,-272.530876,0.00028493,113]
[336482077,1724872817867,-399.2509,0.00028536,30]
[336482078,1724872817913,-1046.28039439,0.00028767,120]
[336482079,1724872817959,-528.08,0.00029,120]
[336482080,1724872818008,-153.66,0.000297,31]
[336482081,1724872818057,-153.66,0.000297,31]
[336482082,1724872818106,-153.66,0.000297,31]
[336482083,1724872818155,-153.66,0.000297,31]
[336482084,1724872818205,-153.66,0.000297,31]
[336482085,1724872818254,-153.66,0.000297,31]
[336482086,1724872818303,-153.66,0.000297,31]
[336482087,1724872818352,-153.66,0.000297,31]
[336482088,1724872818409,-153.66,0.000297,31]
[336482089,1724872818463,-153.66,0.000297,31]
[336482090,1724872818515,-153.66,0.000297,31]
[336482091,1724872818565,-153.66,0.000297,31]
[336482092,1724872818615,-153.66,0.000297,31]
[336482093,1724872818665,-153.66,0.000297,31]
[336482094,1724872818714,-879.33108114,0.0002988,30]
[336482095,1724872818762,-171.42222222,0.0003,120]
[336482096,1724872818807,-151.0,0.0003,120]
[336482097,1724872818853,-450.0,0.0003,120]
[336482098,1724872818899,-204.47993161,0.0003,30]
[336482099,1724872818944,-400.0,0.00030137,60]
[336482100,1724872818997,-171.42222222,0.00030959,120]
[336482101,1724872819050,-153.66,0.000312,31]
[336482102,1724872819098,-153.66,0.000312,31]
[336482103,1724872819152,-153.66,0.000312,31]
[336482104,1724872819203,-153.66,0.000312,31]
[336482105,1724872819251,-153.66,0.000312,31]
[336482106,1724872819299,-153.66,0.000312,31]
[336482107,1724872819349,-153.66,0.000312,31]
[336482108,1724872819401,-153.66,0.000312,31]
[336482109,1724872819450,-153.66,0.000312,31]
[336482110,1724872819499,-153.66,0.000312,31]
[336482111,1724872819548,-153.66,0.000312,31]
[336482112,1724872819596,-153.66,0.000312,31]
[336482113,1724872819645,-153.66,0.000312,31]
[336482114,1724872819692,-153.66,0.000312,31]
[336482115,1724872819736,-151.0,0.00031452,120]
[336482116,1724872819780,-171.42222222,0.00031918,120]
[336482117,1724872819831,-150.0,0.00032,30]
[336482118,1724872820021,-247.0,0.00032,120]
[336482119,1724872820069,-153.66,0.000327,31]
[336482120,1724872820117,-153.66,0.000327,31]
[336482121,1724872820171,-153.66,0.000327,31]
[336482122,1724872820217,-153.66,0.000327,31]
[336482123,1724872820264,-153.66,0.000327,31]
[336482124,1724872820309,-153.66,0.000327,31]
[336482125,1724872820354,-153.66,0.000327,31]
[336482126,1724872820400,-153.66,0.000327,31]
[336482127,1724872820445,-153.66,0.000327,31]
[336482128,1724872820488,-20522.92335242,0.00032704,60]
[336482129,1724872820530,-1000.0,0.00032876,30]
[336482130,1724872820572,-1040.57618289,0.00032876,30]
[336482131,1724872820612,-474.08116007,0.00032877,60]
[336482132,1724872820654,-171.42222222,0.00032877,120]
[336482133,1724872820696,-151.0,0.00032904,120]
[336482134,1724872820740,-150.0,0.00033,30]
[336482135,1724872820781,-3000.0,0.00033,115]
[336482136,1724872820825,-411.42379066,0.00033,120]
[336482137,1724872820868,-171.42222222,0.00033836,120]
[336482138,1724872820916,-200.0,0.00034,30]
[336482139,1724872820962,-1000.0,0.00034,120]
[336482140,1724872821006,-485.839738,0.00034,30]
[336482141,1724872821050,-151.0,0.00034356,120]
[336482142,1724872821102,-171.42222222,0.00034795,120]
[336482143,1724872821151,-165.48813579,0.00035,120]
[336482144,1724872821196,-553.25018856,0.00035,120]
[336482145,1724872821238,-24419.6090479,0.00035,30]
[336482146,1724872821283,-500.0,0.00035616,30]
[336482147,1724872821327,-534.77604176,0.00035616,30]
[336482148,1724872821372,-500.0,0.00035616,120]
[336482149,1724872821416,-500.0,0.00035616,120]
[336482150,1724872821460,-500.0,0.00035616,120]
[336482151,1724872821504,-500.0,0.00035616,120]
[336482152,1724872821550,-500.0,0.00035616,120]
[336482153,1724872821601,-500.0,0.00035616,120]
[336482154,1724872821645,-500.0,0.00035616,120]
[336482155,1724872821692,-500.0,0.00035616,120]
[336482156,1724872821734,-500.0,0.00035616,120]
[336482157,1724872821773,-500.0,0.00035616,120]
[336482158,1724872821816,-500.0,0.00035616,120]
[336482159,1724872821860,-500.0,0.00035616,120]
[336482160,1724872821906,-500.0,0.00035616,120]
[336482161,1724872821949,-500.0,0.00035616,120]
[336482162,1724872821996,-500.0,0.00035616,120]
[336482163,1724872822039,-500.0,0.00035616,120]
[336482164,1724872822085,-500.0,0.00035616,120]
[336482165,1724872822128,-550.87208088,0.00035616,120]
[336482166,1724872822177,-400.0,0.00035616,60]
[336482167,1724872822226,-1327.558489,0.00035616,120]
[336482168,1724872822278,-153.0,0.00035644,120]
[336482169,1724872822323,-153.0,0.00035644,120]
[336482170,1724872822367,-153.0,0.00035644,120]
[336482171,1724872822413,-153.0,0.00035644,120]
[336482172,1724872822459,-153.0,0.00035644,120]
[336482173,1724872822507,-153.0,0.00035644,120]
[336482174,1724872822552,-153.0,0.00035644,120]
[336482175,1724872822595,-153.0,0.00035644,120]
[336482176,1724872822641,-153.0,0.00035644,120]
[336482177,1724872822687,-153.0,0.00035644,120]
[336482178,1724872822730,-153.0,0.00035644,120]
[336482179,1724872822773,-153.0,0.00035644,120]
[336482180,1724872822816,-153.0,0.00035644,120]
[336482181,1724872822861,-153.0,0.00035644,120]
[336482182,1724872822910,-153.0,0.00035644,120]
[336482183,1724872822958,-153.0,0.00035644,120]
[336482184,1724872823003,-153.0,0.00035644,120]
[336482185,1724872823048,-153.0,0.00035644,120]
[336482186,1724872823091,-153.0,0.00035644,120]
[336482187,1724872823136,-153.0,0.00035644,120]
[336482188,1724872823180,-153.0,0.00035644,120]
[336482189,1724872823226,-153.0,0.00035644,120]
[336482190,1724872823272,-153.0,0.00035644,120]
[336482191,1724872823317,-153.0,0.00035644,120]
[336482192,1724872823359,-153.0,0.00035644,120]
[336482193,1724872823407,-153.0,0.00035644,120]
[336482194,1724872823450,-153.0,0.00035644,120]
[336482195,1724872823496,-153.0,0.00035644,120]
[336482196,1724872823541,-189.0,0.00035644,120]
[336482197,1724872823583,-189.0,0.00035644,120]
[336482198,1724872823626,-189.0,0.00035644,120]
[336482199,1724872823670,-189.0,0.00035644,120]
[336482200,1724872823714,-189.0,0.00035644,120]
[336482201,1724872823761,-189.0,0.00035644,120]
[336482202,1724872823810,-189.0,0.00035644,120]
[336482203,1724872823864,-189.0,0.00035644,120]
[336482204,1724872823917,-189.0,0.00035644,120]
[336482205,1724872823974,-189.0,0.00035644,120]
[336482206,1724872824026,-189.0,0.00035644,120]
[336482207,1724872824077,-189.0,0.00035644,120]
[336482208,1724872824127,-189.0,0.00035644,120]
[336482209,1724872824175,-189.0,0.00035644,120]
[336482210,1724872824232,-189.0,0.00035644,120]
[336482211,1724872824280,-189.0,0.00035644,120]
[336482212,1724872824327,-189.0,0.00035644,120]
[336482213,1724872824373,-189.0,0.00035644,120]
[336482214,1724872824419,-189.0,0.00035644,120]
[336482215,1724872824475,-189.0,0.00035644,120]
[336482216,1724872824518,-189.0,0.00035644,120]
[336482217,1724872824564,-189.0,0.00035644,120]
[336482218,1724872824610,-189.0,0.00035644,120]
[336482219,1724872824652,-189.0,0.00035644,120]
[336482220,1724872824695,-189.0,0.00035644,120]
[336482221,1724872824735,-189.0,0.00035644,120]
[336482222,1724872824962,-189.0,0.00035644,120]
[336482223,1724872825013,-189.0,0.00035644,120]
[336482224,1724872825064,-189.0,0.00035644,120]
[336482225,1724872825120,-189.0,0.00035644,120]
[336482226,1724872825173,-189.0,0.00035644,120]
[336482227,1724872825226,-189.0,0.00035644,120]
[336482228,1724872825272,-189.0,0.00035644,120]
[336482229,1724872825318,-189.0,0.00035644,120]
[336482230,1724872825364,-189.0,0.00035644,120]
[336482231,1724872825409,-189.0,0.00035644,120]
[336482232,1724872825455,-189.0,0.00035644,120]
[336482233,1724872825504,-189.0,0.00035644,120]
[336482234,1724872825549,-189.0,0.00035644,120]
[336482235,1724872825595,-189.0,0.00035644,120]
[336482236,1724872825648,-189.0,0.00035644,120]
[336482237,1724872825695,-189.0,0.00035644,120]
[336482238,1724872825739,-189.0,0.00035644,120]
[336482239,1724872825782,-189.0,0.00035644,120]
[336482240,1724872825826,-189.0,0.00035644,120]
[336482241,1724872825869,-189.0,0.00035644,120]
[336482242,1724872825917,-189.0,0.00035644,120]
[336482243,1724872825966,-189.0,0.00035644,120]
[336482244,1724872826011,-189.0,0.00035644,120]
[336482245,1724872826055,-189.0,0.00035644,120]
[336482246,1724872826098,-189.0,0.00035644,120]
[336482247,1724872826142,-189.0,0.00035644,120]
[336482248,1724872826186,-189.0,0.00035644,120]
[336482249,1724872826230,-189.0,0.00035644,120]
[336482250,1724872826274,-189.0,0.00035644,120]
[336482251,1724872826320,-189.0,0.00035644,120]
[336482252,1724872826362,-189.0,0.00035644,120]
[336482253,1724872826405,-189.0,0.00035644,120]
[336482254,1724872826447,-189.0,0.00035644,120]
[336482255,1724872826491,-189.0,0.00035644,120]
[336482256,1724872826535,-189.0,0.00035644,120]
[336482257,1724872826579,-189.0,0.00035644,120]
[336482258,1724872826622,-189.0,0.00035644,120]
[336482259,1724872826664,-189.0,0.00035644,120]
[336482260,1724872826705,-189.0,0.00035644,120]
[336482261,1724872826746,-189.0,0.00035644,120]
[336482262,1724872826787,-189.0,0.00035644,120]
[336482263,1724872826831,-189.0,0.00035644,120]
[336482264,1724872826876,-189.0,0.00035644,120]
[336482265,1724872826933,-189.0,0.00035644,120]
[336482266,1724872826985,-189.0,0.00035644,120]
[336482267,1724872827030,-189.0,0.00035644,120]
[336482268,1724872827075,-189.0,0.00035644,120]
[336482269,1724872827120,-189.0,0.00035644,120]
[336482270,1724872827164,-189.0,0.00035644,120]
[336482271,1724872827209,-189.0,0.00035644,120]
[336482272,1724872827253,-189.0,0.00035644,120]
[336482273,1724872827297,-189.0,0.00035644,120]
[336482274,1724872827340,-189.0,0.00035644,120]
[336482275,1724872827382,-189.0,0.00035644,120]
[336482276,1724872827429,-189.0,0.00035644,120]
[336482277,1724872827476,-189.0,0.00035644,120]
[336482278,1724872827520,-189.0,0.00035644,120]
[336482279,1724872827563,-189.0,0.00035644,120]
[336482280,1724872827606,-189.0,0.00035644,120]
[336482281,1724872827649,-189.0,0.00035644,120]
[336482282,1724872827694,-189.0,0.00035644,120]
[336482283,1724872827737,-189.0,0.00035644,120]
[336482284,1724872827780,-189.0,0.00035644,120]
[336482285,1724872827824,-189.0,0.00035644,120]
[336482286,1724872827868,-153.0,0.00035644,120]
[336482287,1724872827918,-153.0,0.00035644,120]
[336482288,1724872827967,-153.0,0.00035644,120]
[336482289,1724872828012,-153.0,0.00035644,120]
[336482290,1724872828056,-153.0,0.00035644,120]
[336482291,1724872828099,-153.0,0.00035644,120]
[336482292,1724872828145,-153.0,0.00035644,120]
[336482293,1724872828191,-153.0,0.00035644,120]
[336482294,1724872828235,-153.0,0.00035644,120]
[336482295,1724872828277,-153.0,0.00035644,120]
[336482296,1724872828319,-153.0,0.00035644,120]
[336482297,1724872828362,-153.0,0.00035644,120]
[336482298,1724872828404,-153.0,0.00035644,120]
[336482299,1724872828449,-153.0,0.00035644,120]
[336482300,1724872828491,-153.0,0.00035644,120]
[336482301,1724872828534,-153.0,0.00035644,120]
[336482302,1724872828575,-153.0,0.00035644,120]
[336482303,1724872828618,-153.0,0.00035644,120]
[336482304,1724872828660,-153.0,0.00035644,120]
[336482305,1724872828700,-153.0,0.00035644,120]
[336482306,1724872828741,-197.0,0.00035644,120]
[336482307,1724872828781,-197.0,0.00035644,120]
[336482308,1724872828822,-197.0,0.00035644,120]
[336482309,1724872828863,-197.0,0.00035644,120]
[336482310,1724872828907,-197.0,0.00035644,120]
[336482311,1724872828957,-197.0,0.00035644,120]
[336482312,1724872829004,-197.0,0.00035644,120]
[336482313,1724872829045,-197.0,0.00035644,120]
[336482314,1724872829091,-197.0,0.00035644,120]
[336482315,1724872829135,-197.0,0.00035644,120]
[336482316,1724872829177,-171.42222222,0.00035753,120]
[336482317,1724872829223,-151.0,0.00035808,120]
[336482318,1724872829264,-300.0,0.00036,120]
[336482319,1724872829304,-19570.08244955,0.00036,30]
[336482320,1724872829344,-1000.0,0.00036,120]
[336482321,1724872829384,-250.0,0.00036,30]
[336482322,1724872829425,-171.42222222,0.00036712,120]
[336482323,1724872829467,-333.58457553,0.000368,30]
[336482324,1724872829513,-3672.42050327,0.00037,30]
[336482325,1724872829559,-1127.35311019,0.0003707,31]
[336482326,1724872829756,-151.0,0.0003726,120]
[336482327,1724872829799,-171.42222222,0.00037671,120]
[336482328,1724872829842,-675.0,0.00038,45]